fUST/lending_fUST_20260204
["ID","MTS","AMOUNT","RATE_DAILY","PERIOD"]
[404493000,1770214582807,-622.25,0.00045779,120]
[404493001,1770214582835,-150.0,0.00046,120]
[404493002,1770214582864,-536.0,0.00046,120]
[404493003,1770214582892,-536.56,0.0004628,60]
[404493004,1770214582920,-7499.75,0.00046305,30]
[404493005,1770214582950,-622.25,0.00046377,120]
[404493006,1770214582979,-622.25,0.00046976,120]
[404493007,1770214583008,-150.0,0.00047,120]
[404493008,1770214583038,-736.2959145,0.00047265,120]
[404493009,1770214583066,-151.0,0.00047397,30]
[404493010,1770214583097,-622.25,0.00047574,120]
[404493011,1770214583127,-723.32,0.000476,30]
[404493012,1770214583156,-881.80655531,0.0004764,60]
[404493013,1770214583186,-200.0,0.00047728,120]
[404493014,1770214583215,-279.53524663,0.00048,120]
[404493015,1770214583245,-6126.198639,0.00048,120]
[404493016,1770214583275,-151.0,0.00048082,32]
[404493017,1770214583315,-622.25,0.00048172,120]
[404493018,1770214583345,-1308.20734021,0.00048398,120]
[404493019,1770214583375,-500.0,0.00048399,30]
[404493020,1770214583407,-151.0,0.00048767,34]
[404493021,1770214583438,-622.25,0.00048771,120]
[404493022,1770214583468,-200.619608,0.00049,20]
[404493023,1770214583498,-317.11546478,0.00049,15]
[404493024,1770214583529,-768.93957574,0.00049265,120]
[404493025,1770214583561,-531.51836682,0.00049315,120]
[404493026,1770214583592,-622.25,0.00049369,120]
[404493027,1770214583641,-151.0,0.00049452,36]
[404493028,1770214583674,-5464.88,0.00049556,14]
[404493029,1770214583705,-21550.762003,0.00049844,60]
[404493030,1770214583740,-10007.134799,0.00049856,120]
[404493031,1770214583773,-201.15,0.00049863,120]
[404493032,1770214583804,-563.68888352,0.0004987,120]
[404493033,1770214583837,-13622.851551,0.00049898,60]
[404493034,1770214583869,-562.96007805,0.000499,120]
[404493035,1770214583899,-622.25,0.00049967,120]
[404493036,1770214583928,-10000.0,0.00049997,120]
[404493037,1770214583959,-296.0,0.0005,90]
[404493038,1770214583987,-2339.86329979,0.0005,120]
[404493039,1770214584017,-152.0,0.0005,120]
[404493040,1770214584046,-380805.61287438,0.0005,7]
[404493041,1770214588039,-17149.77612562,0.0005,7]
[404493042,1770214588068,-7029.82894295,0.0005,30]
[404493043,1770214588095,-30000.0,0.0005,30]
[404493044,1770214588124,-269.07766897,0.0005,120]
[404493045,1770214588154,-741.08018794,0.0005,7]
[404493046,1770214588185,-200.0,0.00050106,120]
[404493047,1770214588215,-151.0,0.00050136,38]
[404493048,1770214588244,-10062.9453,0.0005028,60]
[404493049,1770214588272,-150.0,0.000503,60]
[404493050,1770214588302,-622.25,0.00050566,120]
[404493051,1770214588331,-1555.89,0.000508,14]
[404493052,1770214588360,-151.0,0.00050821,40]
[404493053,1770214588394,-723.32,0.000509,30]
[404493054,1770214588424,-4646.8526833,0.00051,120]
[404493055,1770214588453,-3000.0,0.00051,85]
[404493056,1770214588481,-3000.0,0.0005101,85]
[404493057,1770214588511,-66857.502578,0.00051019,60]
[404493058,1770214588539,-3000.0,0.0005102,85]
[404493059,1770214588567,-3000.0,0.0005103,85]
[404493060,1770214588597,-3000.0,0.0005104,85]
[404493061,1770214588626,-3000.0,0.0005105,85]
[404493062,1770214588654,-400.0,0.00051058,31]
[404493063,1770214588682,-3000.0,0.0005106,85]
[404493064,1770214588710,-3581.421606,0.0005107,85]
[404493065,1770214588739,-622.25,0.00051164,120]
[404493066,1770214588766,-1555.89,0.000512,14]
[404493067,1770214588794,-152.0,0.000514,120]
[404493068,1770214588821,-50000.0,0.000514,60]
[404493069,1770214588848,-159.36,0.00051479,120]
[404493070,1770214588979,-50000.0,0.000515,60]
[404493071,1770214589007,-741.08018794,0.000515,7]
[404493072,1770214589035,-151.0,0.00051506,42]
[404493073,1770214589064,-622.25,0.00051762,120]
[404493074,1770214589091,-357.0,0.00051781,120]
[404493075,1770214589119,-426.20550017,0.000518,120]
[404493076,1770214589146,-513.11,0.000519,120]
[404493077,1770214589174,-304.22362864,0.00052,120]
[404493078,1770214589215,431.09,0.00032877,10]
[404493079,1770214591156,176.7724686,0.000398,120]
[404493080,1770214591541,179.38511265,0.0005,120]
[404493081,1770214593344,882.314,0.0005,30]
[404493082,1770214595716,190.23747497,0.000398,120]
[404493083,1770214608917,-359.24,0.00032877,10]
[404493084,1770214608944,-209.61290887,0.00038643,10]
[404493085,1770214608974,-151.0,0.00052191,44]
[404493086,1770214609001,-38000.0,0.00052334,18]
[404493087,1770214609028,-6065.84643851,0.00052334,18]
[404493088,1770214609054,-622.25,0.00052361,120]
[404493089,1770214609082,-50000.0,0.000524,60]
[404493090,1770214609110,-50000.0,0.000525,60]
[404493091,1770214609138,-1555.89,0.000526,14]
[404493092,1770214609165,-400.0,0.00052793,31]
[404493093,1770214609192,-152.0,0.000528,120]
[404493094,1770214609220,-151.0,0.00052876,46]
[404493095,1770214609248,-622.25,0.00052959,120]
[404493096,1770214609275,-1673.74250503,0.00053,120]
[404493097,1770214609301,-400.0,0.00053105,31]
[404493098,1770214609330,-50000.0,0.000534,60]
[404493099,1770214609356,-150.0,0.00053425,120]
[404493100,1770214609384,-500.0,0.00053425,120]
[404493101,1770214609410,-500.0,0.00053425,120]
[404493102,1770214609438,-150.0,0.00053425,120]
[404493103,1770214609467,-500.0,0.00053425,120]
[404493104,1770214609493,-202.46216225,0.00053425,120]
[404493105,1770214609519,-500.0,0.00053425,120]
[404493106,1770214609546,-500.0,0.00053425,120]
[404493107,1770214609572,-500.0,0.00053425,120]
[404493108,1770214609600,-500.0,0.00053425,120]
[404493109,1770214609627,-500.0,0.00053425,120]
[404493110,1770214609653,-500.0,0.00053425,120]
[404493111,1770214609679,-500.0,0.00053425,120]
[404493112,1770214609706,-500.0,0.00053425,120]
[404493113,1770214609733,-500.0,0.00053425,120]
[404493114,1770214609761,-500.0,0.00053425,120]
[404493115,1770214609789,-353.00388015,0.00053425,120]
[404493116,1770214609816,-500.0,0.00053425,120]
[404493117,1770214609843,-500.0,0.00053425,120]
[404493118,1770214609869,-500.0,0.00053425,120]
[404493119,1770214609896,-500.0,0.00053425,120]
[404493120,1770214610033,-500.0,0.00053425,120]
[404493121,1770214610064,-500.0,0.00053425,120]
[404493122,1770214610092,-500.0,0.00053425,120]
[404493123,1770214610118,-500.0,0.00053425,120]
[404493124,1770214610145,-194.24548668,0.00053425,120]
[404493125,1770214610170,-207.24325022,0.00053425,120]
[404493126,1770214610199,-443.75809511,0.00053425,120]
[404493127,1770214610225,-500.0,0.00053425,120]
[404493128,1770214610252,-500.0,0.00053425,120]
[404493129,1770214610278,-456.43809714,0.00053425,120]
[404493130,1770214610305,-500.0,0.00053425,120]
[404493131,1770214610332,-500.0,0.00053425,120]
[404493132,1770214610358,-500.0,0.00053425,120]
[404493133,1770214610387,-500.0,0.00053425,120]
[404493134,1770214610414,-500.0,0.00053425,120]
[404493135,1770214610442,-500.0,0.00053425,120]
[404493136,1770214610471,-419.89804982,0.00053425,120]
[404493137,1770214610502,-500.0,0.00053425,120]
[404493138,1770214610530,-500.0,0.00053425,120]
[404493139,1770214610557,-150.0,0.00053425,120]
[404493140,1770214610584,-500.0,0.00053425,120]
[404493141,1770214610610,-500.0,0.00053425,120]
[404493142,1770214610638,-251.32070018,0.00053425,120]
[404493143,1770214610665,-150.0,0.00053425,120]
[404493144,1770214610692,-371.16340839,0.00053425,120]
[404493145,1770214610720,-304.17022129,0.00053425,120]
[404493146,1770214610746,-192.50058308,0.00053425,120]
[404493147,1770214610774,-150.0,0.00053425,120]
[404493148,1770214610803,-201.55634591,0.00053425,120]
[404493149,1770214610830,-494.0,0.00053425,120]
[404493150,1770214610858,-494.0,0.00053425,120]
[404493151,1770214610885,-494.0,0.00053425,120]
[404493152,1770214610911,-494.0,0.00053425,120]
[404493153,1770214610937,-494.0,0.00053425,120]
[404493154,1770214610964,-494.0,0.00053425,120]
[404493155,1770214610990,-494.0,0.00053425,120]
[404493156,1770214611016,-494.0,0.00053425,120]
[404493157,1770214611042,-494.0,0.00053425,120]
[404493158,1770214611068,-494.0,0.00053425,120]
[404493159,1770214611094,-494.0,0.00053425,120]
[404493160,1770214611120,-494.0,0.00053425,120]
[404493161,1770214611146,-494.0,0.00053425,120]
[404493162,1770214611172,-494.0,0.00053425,120]
[404493163,1770214611198,-494.0,0.00053425,120]
[404493164,1770214611224,-494.0,0.00053425,120]
[404493165,1770214611250,-494.0,0.00053425,120]
[404493166,1770214611276,-494.0,0.00053425,120]
[404493167,1770214611302,-494.0,0.00053425,120]
[404493168,1770214611327,-494.0,0.00053425,120]
[404493169,1770214611354,-494.0,0.00053425,120]
[404493170,1770214611383,-494.0,0.00053425,120]
[404493171,1770214611409,-494.0,0.00053425,120]
[404493172,1770214611435,-500.67642027,0.00053425,120]
[404493173,1770214611462,-500.0,0.00053425,120]
[404493174,1770214611488,-500.0,0.00053425,120]
[404493175,1770214611514,-500.0,0.00053425,120]
[404493176,1770214611539,-500.0,0.00053425,120]
[404493177,1770214611565,-614.26426347,0.00053425,120]
[404493178,1770214611591,-500.0,0.00053425,120]
[404493179,1770214611616,-388.41353933,0.00053425,120]
[404493180,1770214611642,-500.0,0.00053425,120]
[404493181,1770214611668,-500.0,0.00053425,120]
[404493182,1770214611694,-500.0,0.00053425,120]
[404493183,1770214611720,-687.0,0.00053425,120]
[404493184,1770214611745,-500.0,0.00053425,85]
[404493185,1770214611770,-410.58724748,0.00053425,120]
[404493186,1770214611796,-687.0,0.00053425,120]
[404493187,1770214611822,-500.0,0.00053425,85]
[404493188,1770214611848,-500.0,0.00053425,120]
[404493189,1770214611873,-687.0,0.00053425,120]
[404493190,1770214611899,-500.0,0.00053425,85]
[404493191,1770214611924,-500.0,0.00053425,120]
[404493192,1770214611949,-687.0,0.00053425,120]
[404493193,1770214611975,-500.0,0.00053425,85]
[404493194,1770214612000,-500.0,0.00053425,120]
[404493195,1770214612026,-687.0,0.00053425,120]
[404493196,1770214612052,-500.0,0.00053425,85]
[404493197,1770214612077,-500.0,0.00053425,120]
[404493198,1770214612103,-500.0,0.00053425,120]
[404493199,1770214612129,-687.0,0.00053425,120]
[404493200,1770214612154,-500.0,0.00053425,85]
[404493201,1770214612179,-687.0,0.00053425,120]
[404493202,1770214612204,-500.0,0.00053425,120]
[404493203,1770214612229,-500.0,0.00053425,120]
[404493204,1770214612254,-500.0,0.00053425,85]
[404493205,1770214612386,-687.0,0.00053425,120]
[404493206,1770214612413,-500.0,0.00053425,120]
[404493207,1770214612441,-195.57960354,0.00053425,120]
[404493208,1770214612482,-500.0,0.00053425,85]
[404493209,1770214612513,-687.0,0.00053425,120]
[404493210,1770214612543,-500.0,0.00053425,120]
[404493211,1770214612573,-500.0,0.00053425,85]
[404493212,1770214612602,-687.0,0.00053425,120]
[404493213,1770214612630,-500.0,0.00053425,120]
[404493214,1770214612658,-687.0,0.00053425,120]
[404493215,1770214612687,-500.0,0.00053425,85]
[404493216,1770214612714,-361.76687849,0.00053425,120]
[404493217,1770214612741,-687.0,0.00053425,120]
[404493218,1770214612769,-500.0,0.00053425,85]
[404493219,1770214612797,-500.0,0.00053425,120]
[404493220,1770214612824,-687.0,0.00053425,120]
[404493221,1770214612851,-269.52154325,0.00053425,85]
[404493222,1770214612877,-500.0,0.00053425,120]
[404493223,1770214612904,-687.0,0.00053425,120]
[404493224,1770214612930,-500.0,0.00053425,120]
[404493225,1770214612956,-687.0,0.00053425,120]
[404493226,1770214612983,-500.0,0.00053425,120]
[404493227,1770214613008,-150.0,0.00053425,120]
[404493228,1770214613035,-687.0,0.00053425,120]
[404493229,1770214613062,-359.52848322,0.00053425,120]
[404493230,1770214613090,-150.0,0.00053425,120]
[404493231,1770214613119,-500.0,0.00053425,120]
[404493232,1770214613148,-500.0,0.00053425,120]
[404493233,1770214613176,-500.0,0.00053425,120]
[404493234,1770214613206,-150.0,0.00053425,120]
[404493235,1770214613234,-500.0,0.00053425,120]
[404493236,1770214613265,-500.0,0.00053425,120]
[404493237,1770214613296,-500.0,0.00053425,120]
[404493238,1770214613328,-687.0,0.00053425,120]
[404493239,1770214613361,-500.0,0.00053425,120]
[404493240,1770214613392,-150.0,0.00053425,120]
[404493241,1770214613423,-339.846351,0.00053425,120]
[404493242,1770214613454,-500.0,0.00053425,120]
[404493243,1770214613484,-203.09416946,0.00053425,120]
[404493244,1770214613514,-500.0,0.00053425,120]
[404493245,1770214613544,-500.0,0.00053425,120]
[404493246,1770214613574,-500.0,0.00053425,120]
[404493247,1770214613605,-687.0,0.00053425,120]
[404493248,1770214613635,-500.0,0.00053425,120]
[404493249,1770214613663,-500.0,0.00053425,120]
[404493250,1770214613691,-500.0,0.00053425,120]
[404493251,1770214613719,-500.0,0.00053425,120]
[404493252,1770214613747,-500.0,0.00053425,120]
[404493253,1770214613776,-500.0,0.00053425,120]
[404493254,1770214613805,-687.0,0.00053425,120]
[404493255,1770214613837,-500.0,0.00053425,120]
[404493256,1770214613868,-500.0,0.00053425,120]
[404493257,1770214613899,-500.0,0.00053425,120]
[404493258,1770214613929,-687.0,0.00053425,120]
[404493259,1770214613957,-500.0,0.00053425,120]
[404493260,1770214613985,-327.34333192,0.00053425,120]
[404493261,1770214614014,-687.0,0.00053425,120]
[404493262,1770214614041,-687.0,0.00053425,120]
[404493263,1770214614069,-687.0,0.00053425,120]
[404493264,1770214614096,-699.39985828,0.00053425,120]
[404493265,1770214614123,-150.0,0.00053425,120]
[404493266,1770214614149,-150.0,0.00053425,120]
[404493267,1770214614175,-150.0,0.00053425,120]
[404493268,1770214614202,-150.0,0.00053425,120]
[404493269,1770214614228,-188.47489153,0.00053425,120]
[404493270,1770214614255,-831.0,0.00053425,120]
[404493271,1770214614281,-831.0,0.00053425,120]
[404493272,1770214614308,-831.0,0.00053425,120]
[404493273,1770214614335,-499.0,0.00053425,120]
[404493274,1770214614361,-831.0,0.00053425,120]
[404493275,1770214614389,-499.0,0.00053425,120]
[404493276,1770214614415,-831.0,0.00053425,120]
[404493277,1770214614443,-153.05073387,0.00053425,120]
[404493278,1770214614471,-499.0,0.00053425,120]
[404493279,1770214614497,-831.0,0.00053425,120]
[404493280,1770214614523,-499.0,0.00053425,120]
[404493281,1770214614547,-831.0,0.00053425,120]
[404493282,1770214614570,-200.63320629,0.00053425,120]
[404493283,1770214614595,-831.0,0.00053425,120]
[404493284,1770214614619,-831.0,0.00053425,120]
[404493285,1770214614645,-499.0,0.00053425,120]
[404493286,1770214614671,-500.0,0.00053425,120]
[404493287,1770214614697,-831.0,0.00053425,120]
[404493288,1770214614724,-458.35790269,0.00053425,120]
[404493289,1770214614750,-831.0,0.00053425,120]
[404493290,1770214614777,-831.0,0.00053425,120]
[404493291,1770214614804,-499.0,0.00053425,120]
[404493292,1770214614946,-831.0,0.00053425,120]
[404493293,1770214614974,-500.0,0.00053425,120]
[404493294,1770214615001,-500.0,0.00053425,120]
[404493295,1770214615028,-831.0,0.00053425,120]
[404493296,1770214615055,-392.82078757,0.00053425,120]
[404493297,1770214615082,-499.0,0.00053425,120]
[404493298,1770214615107,-500.0,0.00053425,120]
[404493299,1770214615135,-831.0,0.00053425,120]
[404493300,1770214615161,-500.0,0.00053425,120]
[404493301,1770214615186,-500.0,0.00053425,120]
[404493302,1770214615212,-500.0,0.00053425,120]
[404493303,1770214615240,-500.0,0.00053425,120]
[404493304,1770214615266,-200.51408624,0.00053425,120]
[404493305,1770214615293,-500.0,0.00053425,120]
[404493306,1770214615319,-500.0,0.00053425,120]
[404493307,1770214615347,-499.0,0.00053425,120]
[404493308,1770214615374,-500.0,0.00053425,120]
[404493309,1770214615404,-500.0,0.00053425,120]
[404493310,1770214615434,-500.0,0.00053425,120]
[404493311,1770214615462,-500.0,0.00053425,120]
[404493312,1770214615490,-500.0,0.00053425,120]
[404493313,1770214615517,-500.0,0.00053425,120]
[404493314,1770214615545,-500.0,0.00053425,120]
[404493315,1770214615574,-831.0,0.00053425,120]
[404493316,1770214615602,-500.0,0.00053425,120]
[404493317,1770214615630,-614.61828257,0.00053425,120]
[404493318,1770214615658,-636.72604333,0.00053425,120]
[404493319,1770214615686,-499.0,0.00053425,120]
[404493320,1770214615713,-831.0,0.00053425,120]
[404493321,1770214615741,-499.0,0.00053425,120]
[404493322,1770214615768,-831.0,0.00053425,120]
[404493323,1770214615796,-499.0,0.00053425,120]
[404493324,1770214615823,-831.0,0.00053425,120]
[404493325,1770214615850,-499.0,0.00053425,120]
[404493326,1770214615876,-831.0,0.00053425,120]
[404493327,1770214615903,-499.0,0.00053425,120]
[404493328,1770214615929,-831.0,0.00053425,120]
[404493329,1770214615957,-499.0,0.00053425,120]
[404493330,1770214615985,-831.0,0.00053425,120]
[404493331,1770214616014,-499.0,0.00053425,120]
[404493332,1770214616040,-831.0,0.00053425,120]
[404493333,1770214616067,-499.0,0.00053425,120]
[404493334,1770214616093,-854.67712591,0.00053425,120]
[404493335,1770214616120,-499.0,0.00053425,120]
[404493336,1770214616147,-499.0,0.00053425,120]
[404493337,1770214616175,-499.0,0.00053425,120]
[404493338,1770214616202,-499.0,0.00053425,120]
[404493339,1770214616229,-499.0,0.00053425,120]
[404493340,1770214616255,-499.0,0.00053425,120]
[404493341,1770214616282,-499.0,0.00053425,120]
[404493342,1770214616308,-503.76192231,0.00053425,120]
[404493343,1770214616336,-1555.89,0.000535,14]
[404493344,1770214616363,-50000.0,0.000535,60]
[404493345,1770214616393,-151.0,0.00053561,48]
[404493346,1770214616421,-766.0,0.00053606,31]
[404493347,1770214616449,-5434.77537927,0.000537,120]
[404493348,1770214616478,-42977.967377,0.000537,120]
[404493349,1770214616505,-8318.07,0.000537,120]
[404493350,1770214616533,-411.0,0.00053704,31]
[404493351,1770214616561,-710.0,0.0005377,31]
[404493352,1770214616589,-200.0,0.00053913,120]
[404493353,1770214616616,-711.0,0.00053992,31]
[404493354,1770214616643,-710.0,0.0005409,31]
[404493355,1770214616670,-10000.0,0.000541,100]
[404493356,1770214616697,-10000.0,0.0005412,100]
[404493357,1770214616724,-10000.0,0.0005413,100]
[404493358,1770214616750,-10000.0,0.0005414,100]
[404493359,1770214616776,-10000.0,0.0005415,100]
[404493360,1770214616802,-10000.0,0.0005416,100]
[404493361,1770214616829,-10000.0,0.0005417,100]
[404493362,1770214616856,-10000.0,0.0005417,95]
[404493363,1770214616882,-20000.0,0.0005418,95]
[404493364,1770214616909,-20000.0,0.0005419,95]
[404493365,1770214616937,-278.32799109,0.00054246,30]
[404493366,1770214616964,-289.39379889,0.00054246,50]
[404493367,1770214616991,-7029.82894295,0.00054287,30]
[404493368,1770214617020,-152.0,0.000543,120]
[404493369,1770214617048,-70544.51941508,0.000547,120]
[404493370,1770214617074,-502.24157408,0.00054794,120]
[404493371,1770214617102,-5168.0,0.00054794,120]
[404493372,1770214617129,-500.0,0.00054794,120]
[404493373,1770214617155,-833.33,0.00054794,120]
[404493374,1770214617182,-561.092703,0.00054794,120]
[404493375,1770214617208,-500.0,0.00054794,120]
[404493376,1770214617234,-512.6087305,0.00054794,120]
[404493377,1770214617261,-500.0,0.00054794,120]
[404493378,1770214617391,-512.41392386,0.00054794,120]
[404493379,1770214617421,-515.931467,0.00054794,120]
[404493380,1770214617450,-518.94235693,0.00054794,120]
[404493381,1770214617480,-518.42158193,0.00054794,120]
[404493382,1770214617509,-513.12596332,0.00054794,120]
[404493383,1770214617537,-560.8798813,0.00054794,120]
[404493384,1770214617565,-500.0,0.00054794,120]
[404493385,1770214617594,-515.42691379,0.00054794,120]
[404493386,1770214617622,-499.69287825,0.00054794,120]
[404493387,1770214617651,-568.10715359,0.00054794,120]
[404493388,1770214617682,-500.0,0.00054794,120]
[404493389,1770214617716,-537.17966352,0.00054794,120]
[404493390,1770214617752,-539.08945418,0.00054794,120]
[404493391,1770214617781,-520.96487124,0.00054794,120]
[404493392,1770214617811,-517.66498143,0.00054794,120]
[404493393,1770214617843,-522.58860281,0.00054794,120]
[404493394,1770214617872,-614.97820273,0.00054794,120]
[404493395,1770214617901,-563.42915637,0.00054794,120]
[404493396,1770214617930,-500.0,0.00054794,120]
[404493397,1770214617959,-500.0,0.00054794,120]
[404493398,1770214617987,-410.63517227,0.00054794,120]
[404493399,1770214618015,-519.38719013,0.00054794,120]
[404493400,1770214618043,-647.72055956,0.00054794,120]
[404493401,1770214618071,-933.47,0.00054794,120]
[404493402,1770214618099,-540.61903627,0.00054794,120]
[404493403,1770214618126,-500.0,0.00054794,120]
[404493404,1770214618153,-620.09866362,0.00054794,120]
[404493405,1770214618181,-525.90780547,0.00054794,120]
[404493406,1770214618210,-766.61,0.00054794,120]
[404493407,1770214618238,-564.12891296,0.00054794,120]
[404493408,1770214618267,-528.57449144,0.00054794,120]
[404493409,1770214618296,-500.0,0.00054794,120]
[404493410,1770214618325,-217.05468918,0.00054794,120]
[404493411,1770214618357,-302.34774072,0.00054794,120]
[404493412,1770214618396,-500.0,0.00054794,120]
[404493413,1770214618428,-208.76643391,0.00054794,120]
[404493414,1770214618458,-500.0,0.00054794,120]
[404493415,1770214618487,-500.0,0.00054794,120]
[404493416,1770214618516,-542.5181274,0.00054794,120]
[404493417,1770214618546,-535.29551691,0.00054794,120]
[404493418,1770214618575,-500.0,0.00054794,120]
[404493419,1770214618608,-516.75487493,0.00054794,120]
[404493420,1770214618639,-500.0,0.00054794,120]
[404493421,1770214618670,-589.64957646,0.00054794,120]
[404493422,1770214618698,-500.0,0.00054794,120]
[404493423,1770214618727,-558.51240837,0.00054794,120]
[404493424,1770214618756,-523.17077915,0.00054794,120]
[404493425,1770214618783,-500.0,0.00054794,120]
[404493426,1770214618811,-500.0,0.00054794,120]
[404493427,1770214618841,-500.0,0.00054794,120]
[404493428,1770214618868,-500.0,0.00054794,120]
[404493429,1770214618896,-500.0,0.00054794,120]
[404493430,1770214618924,-522.26428955,0.00054794,120]
[404493431,1770214618952,-432.12486899,0.00054794,120]
[404493432,1770214618980,-500.0,0.00054794,120]
[404493433,1770214619008,-500.0,0.00054794,120]
[404493434,1770214619036,-500.0,0.00054794,120]
[404493435,1770214619063,-506.90943126,0.00054794,120]
[404493436,1770214619089,-500.0,0.00054794,120]
[404493437,1770214619115,-529.80948442,0.00054794,120]
[404493438,1770214619141,-500.0,0.00054794,120]
[404493439,1770214619168,-547.20771406,0.00054794,120]
[404493440,1770214619201,-183.50979953,0.00054794,120]
[404493441,1770214619229,-500.0,0.00054794,120]
[404493442,1770214619257,-162.41409442,0.00054794,120]
[404493443,1770214619284,-503.94637396,0.00054794,120]
[404493444,1770214619312,-500.0,0.00054794,120]
[404493445,1770214619341,-509.09516317,0.00054794,120]
[404493446,1770214619369,-200.0,0.00054794,120]
[404493447,1770214619399,-599.22260232,0.00054794,120]
[404493448,1770214619428,-585.89,0.00054794,120]
[404493449,1770214619455,-500.0,0.00054794,120]
[404493450,1770214619485,-531.34016475,0.00054794,120]
[404493451,1770214619512,-500.0,0.00054794,120]
[404493452,1770214619539,-380.79475668,0.00054794,120]
[404493453,1770214619566,-500.0,0.00054794,120]
[404493454,1770214619594,-160.03600964,0.00054794,120]
[404493455,1770214619621,-541.69,0.00054794,120]
[404493456,1770214619648,-500.0,0.00054794,120]
[404493457,1770214619675,-500.0,0.00054794,120]
[404493458,1770214619701,-500.0,0.00054794,120]
[404493459,1770214619729,-500.0,0.00054794,120]
[404493460,1770214619758,-500.0,0.00054794,120]
[404493461,1770214619785,-176.55482879,0.00054794,120]
[404493462,1770214619907,-500.0,0.00054794,120]
[404493463,1770214619942,-477.76247981,0.00054794,120]
[404493464,1770214619970,-500.0,0.00054794,120]
[404493465,1770214619998,-473.26062302,0.00054794,120]
[404493466,1770214620027,-500.0,0.00054794,120]
[404493467,1770214620056,-513.23266868,0.00054794,120]
[404493468,1770214620085,-518.49523096,0.00054794,120]
[404493469,1770214620112,-500.0,0.00054794,120]
[404493470,1770214620140,-500.0,0.00054794,120]
[404493471,1770214620169,-618.07708837,0.00054794,120]
[404493472,1770214620199,-734.65,0.00054794,120]
[404493473,1770214620228,-362.82760583,0.00054794,120]
[404493474,1770214620258,-534.88000593,0.00054794,120]
[404493475,1770214620289,-500.0,0.00054794,60]
[404493476,1770214620320,-500.0,0.00054794,120]
[404493477,1770214620352,-201.35339672,0.00054794,120]
[404493478,1770214620383,-605.63820071,0.00054794,120]
[404493479,1770214620415,-500.0,0.00054794,120]
[404493480,1770214620447,-505.81682944,0.00054794,120]
[404493481,1770214620476,-550.0,0.00054794,30]
[404493482,1770214620506,-500.0,0.00054794,120]
[404493483,1770214620537,-500.0,0.00054794,120]
[404493484,1770214620568,-500.0,0.00054794,120]
[404493485,1770214620598,-500.0,0.00054794,120]
[404493486,1770214620626,-500.0,0.00054794,120]
[404493487,1770214620654,-500.0,0.00054794,120]
[404493488,1770214620683,-500.0,0.00054794,120]
[404493489,1770214620711,-500.0,0.00054794,120]
[404493490,1770214620740,-505.20618862,0.00054794,120]
[404493491,1770214620768,-511.61848283,0.00054794,120]
[404493492,1770214620798,-500.0,0.00054794,120]
[404493493,1770214620826,-312.94389336,0.00054794,120]
[404493494,1770214620856,-595.33953774,0.00054794,120]
[404493495,1770214620886,-599.81210066,0.00054794,120]
[404493496,1770214620915,-500.0,0.00054794,120]
[404493497,1770214620945,-500.0,0.00054794,120]
[404493498,1770214620977,-640.35632712,0.00054794,120]
[404493499,1770214621004,-500.0,0.00054794,120]